bitfinex-derivatives/quotes_BNBF0:USTF0_20250303
["timestamp","ask_amount","ask_price","bid_price","bid_amount"]
[1741030959552,0.31688087,580.54,579.21,0.27881865]
[1741030959852,0.31688087,580.54,579.22,0.27881865]
[1741030960153,0.31688087,580.54,579.23,0.27881865]
[1741030960351,0.31688087,580.54,579.24,0.27881865]
[1741030960552,0.31688087,580.54,579.04,0.27881865]
[1741030960754,0.31688087,580.54,579.05,0.27881865]
[1741030961051,0.31688087,580.54,579.06,0.27881865]
[1741030961256,0.31688087,580.54,579.04,0.27881865]
[1741030961257,8.28743551,580.54,579.04,0.27881865]
[1741030961448,7.5972878,580.53,579.05,0.27881865]
[1741030961753,7.5972878,580.52,579.06,0.27881865]
[1741030962053,5.56007288,580.51,578.93,0.3454649]
[1741030962256,5.87711577,580.5,578.94,0.27897807]
[1741030962456,5.87711577,580.49,578.94,0.27897807]
[1741030962751,5.87842806,580.48,578.94,0.27897807]
[1741030962956,1.39225167,580.47,578.94,0.27897807]
[1741030963161,0.31704289,580.46,578.94,0.27897807]
[1741030963559,3.36974414,580.47,578.94,0.27897807]
[1741030963758,3.11821153,580.46,578.94,0.27897807]
[1741030963951,3.11823251,580.45,578.94,0.27897807]
[1741030964155,0.31704289,580.44,578.94,0.27897807]
[1741030964664,0.31704289,580.43,578.94,0.27897807]
[1741030964958,0.31704289,580.42,578.94,0.27897807]
[1741030965161,0.31704289,580.46,578.94,0.27897807]
[1741030965355,0.31698415,580.45,578.95,0.62437278]
[1741030965661,1.72527328,580.47,578.96,0.27891981]
[1741030965865,1.07723904,580.48,578.96,0.27891981]
[1741030966255,6.89028079,580.49,578.96,0.27891981]
[1741030966461,1.07723904,580.48,578.96,0.27891981]
[1741030966759,4.53292384,580.48,578.96,0.27891981]
[1741030966956,5.56285282,580.47,578.96,0.27891981]
[1741030967159,1.07723904,580.46,578.96,0.27891981]
[1741030967464,0.34456619,580.44,578.96,0.27891981]
[1741030967966,3.10356619,580.44,578.96,0.27891981]
[1741030968365,1.80108686,580.43,578.95,0.34545297]
[1741030968560,1.80108686,580.43,578.96,0.27887703]
[1741030968768,3.52607009,580.43,578.96,0.27887703]
[1741030969466,1.33257261,580.42,578.96,0.27887703]
[1741030969667,4.13795721,580.42,578.96,0.27887703]
[1741030969868,3.05768048,580.42,578.97,0.34544104]
[1741030970162,3.05768048,580.42,578.98,0.27893565]
[1741030970367,1.08000802,580.41,578.98,0.27893565]
[1741030970568,0.34459587,580.39,578.98,0.27893565]
[1741030970969,0.31705863,580.38,578.98,0.27893565]
[1741030971367,0.34461368,580.36,578.98,0.27893565]
[1741030972171,3.14972957,580.36,578.98,0.27893565]
[1741030972372,2.80511589,580.35,579.04,1.28202357]
[1741030972571,2.80511589,580.35,579.05,0.27893565]
[1741030972774,0.3446315,580.33,579.05,0.27893565]
[1741030973374,0.3446315,580.33,579.06,0.27896857]
[1741030973571,0.3446315,580.33,579.05,0.27896857]
[1741030974468,1.80125001,580.32,578.98,0.27896857]
[1741030974673,1.80125001,580.32,578.99,0.27896857]
[1741030974976,1.80125001,580.32,579.0,0.27891176]
[1741030975173,1.80125001,580.32,579.01,0.27891176]
[1741030975370,1.80125001,580.32,579.02,0.27891176]
[1741030975570,1.80125001,580.32,579.03,0.27891176]
[1741030975769,1.80125001,580.32,578.97,0.34544104]
[1741030975770,1.80125001,580.32,579.04,0.27891176]
[1741030975969,0.34464338,580.31,579.05,0.27891176]
[1741030976176,0.34464338,580.31,578.98,0.27891176]
[1741030976377,0.31703503,580.3,579.22,1.28202357]
[1741030976577,0.31703503,580.3,579.23,0.27891176]
[1741030977277,1.80130439,580.29,579.23,0.27891176]
[1741030977479,0.31703503,580.28,579.23,0.27891176]
[1741030977872,0.34466713,580.27,579.23,0.27891176]
[1741030978679,0.34466713,580.27,579.24,0.27891176]
[1741030978877,0.34466713,580.27,579.16,0.27891176]
[1741030979084,0.34466713,580.27,579.17,0.27891176]
[1741030979281,0.34466713,580.27,579.16,0.27891176]
[1741030979586,0.34466713,580.27,579.17,0.27891176]
[1741030979782,0.34466713,580.27,579.16,0.27891176]
[1741030980383,1.8013277,580.26,579.16,0.27891176]
[1741030980579,0.34468495,580.24,579.16,0.27891176]
[1741030981083,1.474,580.23,579.16,0.27891176]
[1741030981384,1.474,580.23,579.24,1.28202357]
[1741030981580,1.474,580.23,579.25,0.27891176]
[1741030981782,0.31711133,580.22,579.25,0.27891176]
[1741030981978,1.474,580.23,579.25,0.27891176]
[1741030982178,0.31710024,580.22,579.25,0.27891176]
[1741030982378,1.474,580.23,579.24,1.28202357]
[1741030982582,0.31714745,580.22,579.25,0.27908118]
[1741030983382,1.8015997,580.21,579.25,0.27908118]
[1741030983781,1.8015997,580.21,579.14,0.27908118]
[1741030983980,1.8015997,580.21,579.15,0.27908118]
[1741030984289,1.8015997,580.21,579.16,0.27908118]
[1741030984481,1.8015997,580.21,579.14,0.27908118]
[1741030984679,1.8015997,580.21,579.15,0.27908118]
[1741030984880,0.34471466,580.19,579.16,0.27908118]
[1741030985183,0.34471466,580.19,579.17,0.27908118]
[1741030985384,0.34471466,580.19,579.18,0.27908118]
[1741030985589,0.34471466,580.19,579.13,1.28202357]
[1741030985786,0.34471466,580.19,579.14,0.27901774]
[1741030986384,2.11879866,580.18,579.14,0.27901774]
[1741030986585,1.8016852,580.18,579.14,0.27901774]
[1741030986983,1.29012573,580.17,579.14,0.27901774]
[1741030987183,0.31712573,580.16,579.14,0.27901774]
[1741030987786,0.31712573,580.16,579.21,1.28202357]
[1741030987986,0.34474437,580.14,579.22,0.27901774]
[1741030988182,0.31712573,580.13,579.21,1.28202357]
[1741030988389,0.3447622,580.11,579.21,1.28202357]
[1741030988589,0.31712573,580.1,579.21,1.28202357]
[1741030988790,0.34478003,580.08,579.21,1.28202357]
[1741030988987,0.31717911,580.07,579.21,1.28202357]
[1741030989387,0.34479786,580.05,579.21,1.28202357]
[1741030990288,0.34479786,580.05,578.99,1.28202357]
[1741030990498,0.34479786,580.05,579.0,0.27917284]
[1741030990688,0.34479786,580.05,578.99,1.28202357]
[1741030992396,1.80238505,580.04,578.99,1.28202357]
[1741030992693,3.52868353,580.04,578.99,1.28202357]
[1741030992992,1.72629848,580.03,578.99,1.28202357]
[1741030993195,1.80238505,580.04,578.18,1.28202357]
[1741030993390,1.35055545,580.03,578.2,0.34590107]
[1741030993692,1.35055545,580.03,578.21,0.27921241]
[1741030994090,1.72629848,580.03,578.21,0.27921241]
[1741030994691,1.72629848,580.03,578.22,0.27921241]
[1741030994991,1.35055545,580.03,578.23,0.27921241]
[1741030995187,1.35055545,580.03,578.24,0.27921241]
[1741030995495,1.80301539,580.02,578.26,1.28202357]
[1741030995689,1.80301539,580.02,578.27,0.27921241]
[1741030995895,0.34482758,580.0,578.27,0.62507161]
[1741030996095,0.34482758,580.0,578.28,0.27921241]
[1741030996692,0.34482758,580.0,578.29,0.34584723]
[1741030996893,0.34482758,580.0,578.3,0.27920283]
[1741030997093,0.34482758,580.0,578.34,1.28202357]
[1741030997294,0.31731194,579.99,578.35,0.27920283]
[1741030998495,2.12047591,579.98,578.36,0.27928107]
[1741030998694,2.12047591,579.98,578.37,0.27928107]
[1741030998695,0.31735153,579.97,578.37,0.27928107]
[1741030998890,0.31735153,579.97,578.35,0.27928107]
[1741030999090,0.31735153,579.97,578.36,0.27928107]
[1741030999287,3.13551562,579.97,578.3,0.27928107]
[1741030999491,0.31735153,579.96,578.3,0.27928107]
[1741030999792,5.31087754,579.98,578.31,0.27928107]
[1741031000193,1.80312438,579.98,578.32,0.27928107]
[1741031000494,1.80312438,579.98,578.33,0.27928107]
[1741031000695,0.31728347,579.97,578.34,0.27928107]
[1741031000996,0.31728347,579.97,578.29,0.34584723]
[1741031000997,0.31728347,579.97,578.35,0.27928107]
[1741031001190,1.4,579.96,578.36,0.27928107]
[1741031001491,0.31728347,579.95,578.37,0.27928107]
[1741031001691,0.31728347,579.95,578.3,0.27928107]
[1741031001891,0.31728347,579.95,578.41,1.28202357]
[1741031002197,0.31728347,579.95,578.42,0.27928107]
[1741031002400,0.31728347,579.95,578.43,0.27928107]
[1741031002599,1.66783892,579.95,578.44,0.27928107]
[1741031002798,0.31728347,579.94,578.45,0.27928107]
[1741031002997,0.31728347,579.94,578.46,0.27928107]
[1741031003194,0.31725216,579.93,578.47,0.27918298]
[1741031003398,0.31725216,579.92,578.48,0.27918298]
[1741031003700,0.31725216,579.91,578.49,0.27918298]
[1741031003899,0.31725216,579.91,578.5,0.27918298]
[1741031004195,0.31725216,579.9,578.51,0.27918298]
[1741031004498,0.31725216,579.89,578.51,0.27918298]
[1741031004701,0.3173331,579.88,578.52,0.27926304]
[1741031004897,0.3173331,579.89,578.51,0.27926304]
[1741031005101,0.3173331,579.88,578.52,0.27926304]
[1741031005300,1.80302317,579.9,578.53,0.27926304]
[1741031005599,1.80302317,579.9,578.5,1.28202357]
[1741031005600,0.31731512,579.89,578.54,0.27926304]
[1741031005898,1.80302317,579.9,578.55,0.27926304]
[1741031006094,1.80302317,579.9,578.51,0.27926304]
[1741031006300,1.80302317,579.9,578.52,0.27926304]
[1741031006600,1.80302317,579.9,578.53,0.27926304]
[1741031006801,1.80302317,579.9,578.32,0.27926304]
[1741031007001,1.80302317,579.9,578.33,0.27926304]
[1741031007197,1.4,579.96,578.34,0.27926304]
[1741031007404,1.80285971,579.89,578.35,0.27926304]
[1741031007704,0.3172279,579.95,578.31,1.28202357]
[1741031007705,1.4,579.96,578.36,0.27926304]
[1741031007900,1.80297647,579.88,578.37,0.27926304]
[1741031008201,1.4,579.96,578.38,0.27926304]
[1741031008397,0.31725917,579.95,578.63,1.28202357]
[1741031008703,0.31725917,579.95,578.64,0.27926304]
[1741031009004,0.3448692,579.93,578.65,0.27926304]
[1741031009200,0.31725917,579.92,578.66,0.27926304]
[1741031009502,0.3448811,579.91,578.67,0.27926304]
[1741031009698,0.3448811,579.91,578.68,0.27926304]
[1741031010003,0.31726277,579.9,578.69,0.27926304]
[1741031010196,0.31726277,579.9,578.7,0.27926304]
[1741031010502,0.34489894,579.88,578.71,0.27926304]
[1741031010698,0.31726277,579.87,578.68,0.27926304]
[1741031010897,0.34489894,579.88,578.69,0.27921183]
[1741031010898,0.31728116,579.86,578.69,0.27921183]
[1741031011098,0.34492273,579.84,578.7,0.27921183]
[1741031011302,0.34492273,579.84,578.71,0.27921183]
[1741031011500,0.34492273,579.84,578.68,0.27921183]
[1741031011803,0.34492273,579.84,578.69,0.27921183]
[1741031012003,0.34492273,579.84,578.7,0.27921183]
[1741031012202,0.34492273,579.84,578.71,0.27921183]
[1741031012402,0.3172924,579.83,578.72,0.27922302]
[1741031012604,0.34493463,579.82,578.73,0.27922302]
[1741031012804,0.34493463,579.82,578.63,1.28202357]
[1741031012805,0.34493463,579.82,578.64,0.27922302]
[1741031012998,0.34493463,579.82,578.65,0.27922302]
[1741031013198,0.34493463,579.82,578.64,0.27922302]
[1741031013399,1.80280523,579.81,578.65,0.27922302]
[1741031013707,0.34494653,579.8,578.66,1.56124659]
[1741031013903,0.34494653,579.8,578.67,0.27922302]
[1741031015503,0.34494653,579.8,578.66,1.28202357]
[1741031015504,0.34494653,579.8,578.68,0.27920965]
[1741031015705,0.34494653,579.8,578.69,0.27920965]
[1741031015905,0.34494653,579.8,578.66,1.28202357]
[1741031015906,0.34494653,579.8,578.67,0.27920965]
[1741031016106,0.34494653,579.8,578.68,0.27920965]
[1741031016307,1.80284414,579.79,578.67,0.27920965]
[1741031016608,1.80284414,579.79,578.66,1.28202357]
[1741031016609,0.34495843,579.78,578.71,1.28202357]
[1741031016808,0.34495843,579.78,578.72,0.27920965]
[1741031018811,0.34495843,579.78,578.73,0.27918248]
[1741031019007,0.34495843,579.78,578.74,0.27918248]
[1741031019208,0.34495843,579.78,578.75,0.27918248]
[1741031019404,1.80268071,579.77,578.72,0.27918248]
[1741031019608,1.80268071,579.77,578.73,0.27918248]
[1741031019805,1.80268071,579.77,578.72,0.27918248]
[1741031020004,1.80268071,579.77,578.73,0.27918248]
[1741031020211,1.80268071,579.77,578.72,0.27918248]
[1741031020411,1.80268071,579.77,578.73,0.27918248]
[1741031020607,1.80268071,579.77,578.74,0.27918248]
[1741031020813,1.80268071,579.77,578.72,0.27918248]
[1741031021014,1.80268071,579.77,578.73,0.27918248]
[1741031021311,1.80268071,579.77,578.74,0.27918248]
[1741031021613,1.80268071,579.77,578.85,1.28202357]
[1741031021911,1.80268071,579.77,578.86,0.27918248]
[1741031022206,0.34495843,579.78,578.86,0.27918248]
[1741031022409,1.80268071,579.76,578.86,0.27918248]
[1741031023611,1.056,579.75,578.86,0.27918248]
[1741031023816,1.056,579.75,578.92,1.28202357]
[1741031024012,1.056,579.75,578.93,0.27918248]
[1741031025410,1.80273518,579.74,578.93,0.27918248]
[1741031026413,1.80273518,579.74,578.95,1.28202357]
[1741031026712,1.80273518,579.74,578.96,0.27924143]
[1741031027311,1.80273518,579.74,578.95,1.28202357]
[1741031028016,1.80273518,579.74,578.97,1.28202357]
[1741031028415,0.31751082,579.73,578.97,1.28202357]
[1741031029817,5.97416491,579.74,578.97,1.28202357]
[1741031030018,8.32983291,579.73,578.97,1.28202357]
[1741031030219,8.32983291,579.72,578.97,1.28202357]
[1741031030521,8.84832893,579.71,578.24,1.28202357]
[1741031030716,8.84832893,579.7,578.25,0.2795228]
[1741031030915,8.32983291,579.69,578.25,0.2795228]
[1741031031120,8.32983291,579.68,578.25,0.2795228]
[1741031031413,10.5655781,579.67,578.24,1.28202357]
[1741031031615,8.84838734,579.66,578.25,0.27952641]
[1741031031819,8.84838734,579.65,578.25,0.27952641]
[1741031032125,8.84838734,579.64,578.25,0.27952641]
[1741031032426,3.664019,579.63,578.25,0.27952641]
[1741031032627,7.63947016,579.62,578.26,0.27952641]
[1741031032822,7.63947016,579.61,578.27,0.27952641]
[1741031033022,7.63947016,579.6,578.28,0.27952641]
[1741031033228,2.81610341,579.59,578.29,0.27952641]
[1741031033427,0.31751231,579.58,577.95,0.27952641]
[1741031033628,2.04596488,579.62,577.96,0.62557111]
[1741031033923,0.31751231,579.61,577.97,0.27952641]
[1741031034127,0.31751231,579.61,577.98,0.27952641]
[1741031034320,0.31751231,579.61,577.99,0.27952641]
[1741031034526,0.31751231,579.61,578.0,0.27952641]
[1741031034727,0.31751231,579.61,578.01,0.27952641]
[1741031035027,0.31751231,579.6,578.02,0.27952641]
[1741031035226,0.31751231,579.65,578.03,0.27952641]
[1741031035430,0.31751231,579.64,578.04,0.27952641]
[1741031035627,0.31751231,579.64,578.05,0.27952641]
[1741031035824,0.31751231,579.63,578.06,0.27952641]
[1741031036025,0.31751231,579.62,578.07,0.27952641]
[1741031036225,0.34506556,579.6,578.08,0.27952641]
[1741031036427,0.31751231,579.59,578.09,0.6254933]
[1741031036625,0.31751231,579.59,578.1,0.27952641]
[1741031036931,0.31751231,579.59,578.11,0.27952641]
[1741031037129,0.31751231,579.59,578.1,0.27952641]
[1741031037333,0.31751231,579.59,578.11,0.27952641]
[1741031037533,0.31751231,579.59,578.12,0.34594893]
[1741031037733,0.34506556,579.6,578.12,0.34594893]
[1741031037932,0.31750804,579.59,578.13,0.27943468]
[1741031038328,0.34506556,579.6,578.13,0.27943468]
[1741031038531,0.31749683,579.59,578.13,0.27943468]
[1741031038930,0.34506556,579.6,578.13,0.27943468]
[1741031039233,0.34506556,579.6,578.14,0.27943468]
[1741031039432,0.34506556,579.6,578.15,0.27934767]
[1741031039634,0.34506556,579.6,578.16,0.27934767]
[1741031039835,0.34506556,579.6,578.17,0.27934767]
[1741031040030,0.34506556,579.6,578.18,0.27934767]
[1741031040233,0.34506556,579.6,578.19,0.27934767]
[1741031040433,1.80366174,579.59,578.2,0.27934767]
[1741031040736,1.80366174,579.59,578.12,0.34594893]
[1741031041036,0.31746262,579.58,578.13,0.27939047]
[1741031041234,0.31746262,579.58,578.14,0.27939047]
[1741031041434,0.31746262,579.58,578.15,0.27939047]
[1741031041734,0.34508937,579.56,578.16,0.27939047]
[1741031042036,0.31746262,579.55,578.17,0.27939047]
[1741031042231,0.31746262,579.55,578.18,0.27939047]
[1741031042428,0.34508937,579.56,578.19,0.27939047]
[1741031042730,0.34508937,579.56,578.17,1.28202357]
[1741031042731,0.34508937,579.56,578.2,0.27939047]
[1741031042931,0.34508937,579.56,578.17,1.28202357]
[1741031042932,0.34508937,579.56,578.21,0.27939047]
[1741031043131,0.34508937,579.56,578.22,0.27939047]
[1741031043331,1.80367732,579.55,578.23,0.27939047]
[1741031043535,1.80367732,579.55,578.24,0.27939047]
[1741031043734,1.80367732,579.55,578.25,0.27936655]
[1741031043937,1.80367732,579.55,578.26,0.27936655]
[1741031044129,0.3174624,579.54,578.26,0.27936655]
[1741031044335,1.80367732,579.55,578.27,0.27936655]
[1741031044531,1.80367732,579.55,578.3,1.28202357]
[1741031044734,1.80367732,579.55,578.31,0.27936655]
[1741031044935,1.80367732,579.55,578.32,0.27936655]
[1741031045130,1.80367732,579.55,578.33,0.27936655]
[1741031045330,1.80367732,579.55,578.34,0.27936655]
[1741031045529,1.80367732,579.55,578.35,0.27936655]
[1741031045735,1.80367732,579.55,578.36,0.27936655]
[1741031045936,1.80367732,579.55,578.37,0.27936655]
[1741031046239,1.80367732,579.55,578.38,0.27936655]
[1741031046438,1.80367732,579.55,578.39,0.27936655]
[1741031046638,1.80367732,579.55,578.4,0.27936655]
[1741031046834,1.80367732,579.55,578.12,0.34594893]
[1741031046835,1.488,579.54,578.41,0.27936655]
[1741031047038,1.488,579.54,578.35,1.28202357]
[1741031047039,1.488,579.54,578.42,0.27936655]
[1741031047238,1.488,579.54,578.43,0.27936655]
[1741031047539,1.488,579.54,578.44,0.27936655]
[1741031047739,1.488,579.54,578.45,0.27936655]
[1741031047937,1.488,579.54,578.46,0.27936655]
[1741031048140,1.488,579.54,578.47,0.27936655]
[1741031048339,1.488,579.54,578.36,0.27936655]
[1741031049336,1.488,579.54,578.37,0.27936655]
[1741031049540,1.488,579.54,578.38,0.27936655]
[1741031049738,1.488,579.54,578.39,0.27936655]
[1741031049935,1.488,579.54,578.4,0.27936655]
[1741031050136,1.488,579.54,578.41,0.27936655]
[1741031050335,1.488,579.54,578.42,0.27936655]
[1741031050535,1.488,579.54,578.43,0.27936655]
[1741031050736,1.488,579.54,578.44,0.27936655]
[1741031050938,1.488,579.54,578.35,0.27936655]
[1741031051136,1.488,579.54,578.56,1.28202357]
[1741031051341,1.488,579.54,578.57,0.27936655]
[1741031053237,1.488,579.54,578.58,0.27919239]
[1741031053442,1.488,579.54,578.59,0.27919239]
[1741031053639,1.488,579.54,578.6,0.27919239]
[1741031053940,1.488,579.54,578.61,0.27919239]
[1741031054144,1.488,579.54,578.62,0.27919239]
[1741031054339,1.488,579.54,578.63,0.27919239]
[1741031054538,1.488,579.54,578.2,0.27919239]
[1741031054743,1.488,579.54,578.22,0.3458891]
[1741031054938,1.488,579.54,578.23,0.27919239]
[1741031055143,1.488,579.54,578.24,0.27919239]
[1741031055345,1.488,579.54,578.54,1.28202357]
[1741031055542,1.488,579.54,578.55,0.27919239]
[1741031055936,1.488,579.54,578.56,0.34568584]
[1741031056137,1.488,579.54,578.57,0.27919239]
[1741031056642,1.488,579.54,578.58,0.27919239]
[1741031056838,1.488,579.54,578.59,0.27919239]
[1741031057041,1.488,579.54,578.6,0.27919239]
[1741031057239,1.488,579.54,578.61,0.27919239]
[1741031057444,1.488,579.54,578.62,0.27919239]
[1741031057639,1.488,579.54,578.63,0.27919239]
[1741031057846,1.488,579.54,578.57,0.27919239]
[1741031058146,1.488,579.54,578.58,0.27919239]
[1741031058347,1.488,579.54,578.57,0.27919239]
[1741031058945,1.488,579.54,578.58,0.27919239]
[1741031059145,1.488,579.54,578.59,0.27919239]
[1741031059345,1.488,579.54,578.6,0.27919239]
[1741031059641,1.488,579.54,578.61,0.27919239]
[1741031059839,1.488,579.54,578.62,0.27919239]
[1741031060043,1.488,579.54,578.63,0.27919239]
[1741031060239,1.488,579.54,578.64,0.27919239]
[1741031060440,1.488,579.54,578.57,0.27919239]
[1741031060743,1.488,579.54,578.58,0.27919239]
[1741031060943,1.488,579.54,578.59,0.27919239]
[1741031061145,1.488,579.54,578.6,0.27919239]
[1741031061346,1.488,579.54,578.61,0.27919239]
[1741031061547,1.488,579.54,578.62,0.27919239]
[1741031061846,1.488,579.54,578.63,0.27919239]
[1741031062048,1.488,579.54,578.64,0.2789489]
[1741031062249,1.488,579.54,578.65,0.2789489]
[1741031062447,1.488,579.54,578.66,0.2789489]
[1741031062649,1.488,579.54,578.67,0.2789489]
[1741031062847,1.488,579.54,578.68,0.2789489]
[1741031063051,1.488,579.54,578.69,0.2789489]
[1741031063348,1.488,579.54,578.7,0.2789489]
[1741031063552,1.488,579.54,578.71,0.2789489]
[1741031064052,1.488,579.54,578.72,0.2789489]
[1741031064451,1.488,579.54,578.56,0.34568584]
[1741031064646,1.488,579.54,578.73,0.27868626]
[1741031064848,1.488,579.54,578.74,0.27868626]
[1741031065150,1.488,579.54,578.75,0.27868626]
[1741031065349,1.488,579.54,578.76,0.27868626]
[1741031065546,1.488,579.54,578.77,0.27868626]
[1741031065747,1.488,579.54,578.78,0.27868626]
[1741031065952,1.488,579.54,578.79,0.27868626]
[1741031066153,1.488,579.54,578.8,0.27868626]
[1741031066350,1.488,579.54,578.81,0.27868626]
[1741031066652,1.488,579.54,578.82,0.27868626]
[1741031066852,1.488,579.54,578.83,0.27868626]
[1741031067053,1.488,579.54,578.84,0.27868626]
[1741031067254,1.488,579.54,578.85,0.27868626]
[1741031067454,1.488,579.54,578.82,1.28202357]
[1741031067753,1.261,579.53,578.83,0.27879175]
[1741031067950,1.261,579.53,578.84,0.27879175]
[1741031068155,1.261,579.53,578.85,0.27879175]
[1741031068354,1.261,579.53,578.86,0.27879175]
[1741031068548,1.261,579.53,578.87,0.27879175]
[1741031068748,1.261,579.53,578.88,0.27879175]
[1741031069052,1.261,579.53,578.89,0.27879175]
[1741031069257,1.261,579.53,578.9,0.27879175]
[1741031069650,1.261,579.53,578.91,0.27879175]
[1741031069856,1.261,579.53,578.92,0.27879175]
[1741031070055,1.261,579.53,578.93,0.27879175]
[1741031070354,1.261,579.53,578.94,0.27879175]
[1741031070559,1.261,579.53,578.95,0.27879175]
[1741031070757,1.261,579.53,578.96,0.27875068]
[1741031070957,1.261,579.53,578.97,0.27875068]
[1741031071153,1.261,579.53,578.98,0.27875068]
[1741031071354,1.261,579.53,578.99,0.27875068]
[1741031071558,1.261,579.53,579.0,0.27875068]
[1741031071762,1.261,579.53,579.01,0.27875068]
[1741031071954,1.261,579.53,579.02,0.27875068]
[1741031072157,1.261,579.53,579.03,0.27875068]
[1741031072458,1.261,579.53,579.04,0.27875068]
[1741031072654,1.261,579.53,579.05,0.27875068]
[1741031072957,1.261,579.53,579.06,0.27875068]
[1741031073257,1.261,579.53,579.07,0.27875068]
[1741031073462,1.261,579.53,579.08,0.27875068]
[1741031073660,1.261,579.53,579.09,0.27875068]
[1741031073860,1.261,579.53,579.1,0.27875068]
[1741031074168,1.261,579.53,579.11,0.27875068]
[1741031074357,1.261,579.53,579.12,0.27875068]
[1741031074558,1.261,579.53,578.65,1.28202357]
[1741031074559,1.261,579.53,579.13,0.27875068]
[1741031074860,1.261,579.53,579.14,0.27875068]
[1741031075161,1.261,579.53,579.15,0.27875068]
[1741031075361,1.261,579.53,579.16,0.27875068]
[1741031075560,1.261,579.53,579.17,0.27875068]
[1741031075862,1.261,579.53,579.18,0.27875068]
[1741031076161,1.261,579.53,579.19,0.27875068]
[1741031076364,1.261,579.53,579.2,0.27875068]
[1741031076556,1.261,579.53,579.21,0.27875068]
[1741031076758,1.261,579.53,579.22,0.27875068]
[1741031076962,1.261,579.53,578.77,1.28202357]
[1741031077162,1.261,579.53,578.78,0.27875305]
[1741031077361,1.261,579.53,578.79,0.27875305]
[1741031077561,1.261,579.53,578.8,0.27875305]
[1741031077765,1.261,579.53,578.81,0.27875305]
[1741031077959,1.291,579.52,578.82,0.27875305]
[1741031078159,1.291,579.52,578.77,1.28202357]
[1741031078160,1.291,579.52,578.83,0.27875305]
[1741031078464,1.291,579.52,578.84,0.27875305]
[1741031078668,1.291,579.52,578.85,0.27875305]
[1741031078965,1.291,579.52,578.86,0.27875305]
[1741031079163,1.291,579.52,578.87,0.27875305]
[1741031079360,1.291,579.52,578.88,0.27875305]
[1741031079559,1.291,579.52,578.89,0.27875305]
[1741031079761,1.291,579.52,578.9,0.27875305]
[1741031079960,1.291,579.52,578.91,0.27875305]
[1741031080165,1.291,579.52,578.92,0.27875305]
[1741031080365,1.291,579.52,578.93,0.27875305]
[1741031080561,1.291,579.52,578.94,0.27875305]
[1741031080865,1.291,579.52,578.95,0.27875305]
[1741031081062,1.291,579.52,578.96,0.27875305]
[1741031081267,1.291,579.52,578.97,0.27875305]
[1741031081465,1.291,579.52,578.77,1.28202357]
[1741031081466,1.291,579.52,578.98,0.27875305]
[1741031081663,1.291,579.52,578.99,1.28202357]
[1741031081965,1.291,579.52,579.0,0.27868617]
[1741031082160,1.291,579.52,579.01,0.27868617]
[1741031082366,1.291,579.52,579.02,0.27868617]
[1741031082567,1.291,579.52,579.03,0.27868617]
[1741031082765,1.291,579.52,578.99,1.28202357]
[1741031082766,1.291,579.52,579.04,0.27868617]
[1741031083070,1.291,579.52,579.05,0.27868617]
[1741031083362,1.291,579.52,579.06,0.27868617]
[1741031083668,1.291,579.52,579.07,0.27868617]
[1741031083868,1.291,579.52,579.08,0.27868617]
[1741031084063,1.291,579.52,579.09,0.27868617]
[1741031084268,1.291,579.52,578.86,1.28202357]
[1741031084269,1.291,579.52,579.1,0.27868617]
[1741031084467,1.291,579.52,579.11,0.27868617]
[1741031084668,1.291,579.52,579.12,0.27868617]
[1741031084863,1.301,579.51,579.13,0.27868617]
[1741031085069,1.301,579.51,579.14,0.27868617]
[1741031085265,1.301,579.51,578.87,0.27868617]
[1741031085468,1.301,579.51,578.88,0.27868617]
[1741031085667,1.301,579.51,578.89,0.27868617]
[1741031085970,1.301,579.51,578.9,0.27868617]
[1741031086168,1.301,579.51,578.91,0.27868617]
[1741031086369,1.301,579.51,578.89,1.28202357]
[1741031086568,1.301,579.51,578.9,0.27876139]
[1741031086769,1.301,579.51,578.91,0.27876139]
[1741031087064,1.301,579.51,578.92,0.27876139]
[1741031087265,1.301,579.51,578.93,0.27876139]
[1741031087470,1.301,579.51,578.89,1.28202357]
[1741031087471,1.301,579.51,578.94,0.27880161]
[1741031087771,1.301,579.51,578.95,0.27880161]
[1741031088065,1.301,579.51,578.96,0.27880161]
[1741031088270,1.301,579.51,578.97,0.27880161]
[1741031088564,1.301,579.51,578.98,0.27880161]
[1741031088770,1.301,579.51,578.99,0.27880161]
[1741031088965,1.301,579.51,578.89,1.28202357]
[1741031088966,1.301,579.51,579.0,0.27880161]
[1741031089170,1.301,579.51,578.89,1.28202357]
[1741031089171,1.301,579.51,579.01,0.27880161]
[1741031089363,1.301,579.51,579.02,0.27880161]